Workbook

Sheet Лист2

Sheet КНП "ЦПМСД № 2"
M1: Додаток до листа
M2: від ________ 2018 № ______
B3: ІНФОРМАЦІЯ про надходження і використання благодійних пожертв від фізичних та юридичних осіб КНП "ЦПМСД №2" за 1квартал 2018року
A4: найменування закладу охорони здоров′я
A5: № пп | B5: Найменування юридичної особи (або позначення фізичної особи) | C5: Благодійні пожертви, що були отримані закладом охорони здоров'я від фізичних та юридичних осіб | F5: Всього отримано благодійних пожертв, тис. грн | G5: Використання закладом охорони здоров'я благодійних пожертв, отриманих у грошовій (товари і послуг) формі | K5: Залишок невикористаних грошових коштів, товарів та послуг на кінець звітного періоду, тис. грн
C6: В грошовій форм, тис. грн | D6: В натуральній формі (товари і послуги), тис. грн | E6: Перелік товарів і послуг в натуральній формі (канцтовари, господарські товари, будівельні товари, медикаменти та перев'язувальні матеріали, продукти харчування, м"який інвентар, основні засоби та інші) | G6: Напрямки використання у грошовій формі (стаття витрат) | H6: Сума, тис. грн | I6: Перелік використаних товарів та послуг у натуральній формі (канцтовари, господарські товари, будівельні товари, медикаменти та перев'язувальні матеріали, продукти харчування, м"який інвентар, основні засоби та інші) | J6: Сума, тис. грн
A7: 1 | B7: КП "КЖСЕ" | C7: 31.07 | E7: господарські товари | F7: =SUM(C7,D7) -> 31.07 | I7: господарські товари | K7: 115.83
A8: 2 | B8: ТОВ "Лайфселл" | C8: 3 | E8: канцтовари | F8: =SUM(C8,D8) -> 3 | I8: канцтовари
A9: 3 | B9: ПрАТ"Київстар" | C9: 2 | E9: м"який інвентар | F9: 2 | I9: м"який інвентар
E10: медикаменти | F10: 0 | I10: медикаменти | J10: 548.02
E11: продукти харчування | F11: 0 | I11: продукти харчування
A12: 4 | B12: Фізична особа | C12: 18.3 | F12: 18.3 | G12: 2210 | I12: канцтовари
F13: 0 | G13: 2240 | H13: 1.84 | I13: судовий збір
A14: 5 | B14: Централізовані | F14: 0 | G14: 2240 | H14: 0.2 | I14: комісія банка
B15: поставки МОЗ | D15: 548.02 | F15: 548.02
B16: вакціна | F16: 0
F17: 0
F18: 0
F19: 0
F20: 0
F21: 0
F22: 0
F23: 0
F24: 0
F25: 0
F26: 0
F27: 0
F28: 0
F29: 0
F30: 0
F31: 0
F32: 0
F33: 0
F34: 0
F35: 0
F36: 0
F37: 0
F38: 0
F39: 0
F40: 0
F41: 0
F42: 0
F43: 0
F44: 0
F45: 0
F46: 0
F47: 0
F48: 0
F49: 0
B50: ВСЬОГО по закладу | C50: =SUM(C7:C49) -> 54.37 | D50: =SUM(D7:D49) -> 548.02 | F50: 602.39 | H50: =SUM(H7:H49) -> 2.04 | J50: =SUM(J7:J49) -> 548.02 | K50: =C50-H50 -> 52.33
B53: Керівник установи | G53: Лось Г.М.
F54: (підпис) (ініціали і прізвище)
B55: Головний бухгалтер | G55: Софіенко О.І.
F56: (підпис) (ініціали і прізвище)

Sheet КНП "ЦПМСД № 1"
M1: Додаток до листа ДОЗ
M2: від 20.03.2018 № 061-3416
B3: ІНФОРМАЦІЯ про надходження і використання благодійних пожертв від фізичних та юридичних осіб КНП "Центр первинної медико-санітарної допомоги № 1 Дарницького району м.Києва" за І квартал 2018 року
A4: найменування закладу охорони здоров′я
A5: № з/п | B5: Найменування юридичної особи (або позначення фізичної особи) | C5: Благодійні пожертви, що були отримані закладом охорони здоров'я від фізичних та юридичних осіб | F5: Всього отримано благодійних пожертв, тис. грн | G5: Використання закладом охорони здоров'я благодійних пожертв, отриманих у грошовій (товари і послуг) формі | K5: Залишок невикористаних грошових коштів, товарів та послуг на кінець звітного періоду, тис. грн
C6: В грошовій формі, тис. грн | D6: В натуральній формі (товари і послуги), тис. грн | E6: Перелік товарів і послуг в натуральній формі (канцтовари, господарські товари, будівельні товари, медикаменти та перев'язувальні матеріали, продукти харчування, м"який інвентар, основні засоби та інші) | G6: Напрямки використання у грошовій формі (стаття витрат) | H6: Сума, тис. грн | I6: Перелік використаних товарів та послуг у натуральній формі (канцтовари, господарські товари, будівельні товари, медикаменти та перев'язувальні матеріали, продукти харчування, м"який інвентар, основні засоби та інші) | J6: Сума, тис. грн
A7: 1 | B7: Фізичні особи | C7: 27.443 | D7: 0 | F7: =SUM(C7,D7) -> 27.443 | G7: 2230 | H7: 9.426 | J7: 0
F8: =SUM(C8,D8) -> 0
F9: 0
F10: 0
F11: 0
F12: 0
F13: 0
F14: 0
F15: 0
F16: 0
F17: 0
F18: 0
F19: 0
F20: 0
F21: 0
F22: 0
F23: 0
F24: 0
F25: 0
F26: 0
F27: 0
F28: 0
F29: 0
F30: 0
F31: 0
F32: 0
F33: 0
F34: 0
F35: 0
F36: 0
F37: 0
F38: 0
F39: 0
F40: 0
F41: 0
F42: 0
F43: 0
F44: 0
F45: 0
F46: 0
F47: 0
F48: 0
F49: 0
B50: ВСЬОГО по закладу | C50: =SUM(C7:C49) -> 27.443 | D50: =SUM(D7:D49) -> 0 | F50: 27.443 | H50: =SUM(H7:H49) -> 9.426 | J50: =SUM(J7:J49) -> 0 | K50: =C50-H50 -> 18.017
B53: Керівник установи | G53: А.А. Горбач
F54: (підпис) (ініціали і прізвище)
B55: Головний бухгалтер | G55: Т.М. Федорчук
F56: (підпис) (ініціали і прізвище)

Sheet КНП "ЦПМСД № 2.1"
B1: ІНФОРМАЦІЯ про надходження і використання благодійних пожертв від фізичних та юридичних осіб по КНП "ЦПМСД №2" Дарницького району м.Києва за І квартал 2018 року
A3: № пп | B3: Найменування юридичної особи (або позначення фізичної особи) | C3: Благодійні пожертви, що були отримані закладом охорони здоров'я від фізичних та юридичних осіб | F3: Всього отримано благодійних пожертв, тис. грн | G3: Використання закладом охорони здоров'я благодійних пожертв, отриманих у грошовій (товари і послуг) формі | K3: Залишок невикористаних грошових коштів, товарів та послуг на кінець звітного періоду, тис. грн
C4: В грошовій форм, тис. грн | D4: В натуральній формі (товари і послуги), тис. грн | E4: Перелік товарів і послуг в натуральній формі (канцтовари, господарські товари, будівельні товари, медикаменти та перев'язувальні матеріали, продукти харчування, м"який інвентар, основні засоби та інші) | G4: Напрямки використання у грошовій формі (стаття витрат) | H4: Сума, тис. грн | I4: Перелік використаних товарів та послуг у натуральній формі (канцтовари, господарські товари, будівельні товари, медикаменти та перев'язувальні матеріали, продукти харчування, м"який інвентар, основні засоби та інші) | J4: Сума, тис. грн
B5: БО"Маніп.лік.каса" | D5: 1.02394 | E5: Шприц 2мл,Серветка спиртова №100 | F5: =SUM(C5,D5) -> 1.02394 | I5: Шприц 2мл,Серветка спиртова №100 | J5: 1.02394
B6: ФОП Сафарова Н.Г. | D6: 0.85 | E6: Шприц 2мл | F6: =SUM(C6,D6) -> 0.85 | I6: Шприц 2мл | J6: 0.85
B7: Чеботарьова С.М. | D7: 0.68 | E7: Шприц 2мл | F7: 0.68 | I7: Шприц 2мл | J7: 0.68
B8: Мартинов С.В. | D8: 0.68 | E8: Шприц 2мл | F8: 0.68 | I8: Шприц 2мл | J8: 0.68
B9: Бондарєва Л.В. | D9: 0.51 | E9: Шприц 2мл | F9: 0.51 | I9: Шприц 2мл | J9: 0.51
B10: Шинкарчук Н.Г. | D10: 0.68 | E10: Шприц 2мл | F10: 0.68 | I10: Шприц 2мл | J10: 0.68
B11: ФОП Тихончук | D11: 0.85 | E11: Шприц 2мл | F11: 0.85 | I11: Шприц 2мл | J11: 0.85
B12: Компанія "ФАРМ-СОЮЗ" | D12: 0.891 | E12: Шприц 2мл | F12: 0.891 | I12: Шприц 2мл | J12: 0.891
B13: Софієва Т.В. | D13: 0.87405 | E13: Шприц 2мл | F13: 0.87405 | I13: Шприц 2мл | J13: 0.87405
B14: Грушова О.А. | D14: 0.875 | E14: Шприц 2мл | F14: 0.875 | I14: Шприц 2мл | J14: 0.875
B15: ТОВ "Діомед Т" | D15: 0.75 | E15: Шприц 2мл | F15: 0.75 | I15: Шприц 2мл | J15: 0.75
B16: Фізична особа | C16: 35.519 | F16: 35.519 | G16: 2210 | H16: 6.57
F17: 0 | G17: 2240 | H17: 5.33
B18: ВСЬОГО по закладу | C18: =SUM(C5:C17) -> 35.519 | D18: =SUM(D5:D17) -> 8.66399 | F18: 44.18299 | H18: =SUM(H5:H17) -> 11.9 | J18: =SUM(J5:J17) -> 8.66399 | K18: =C18-H18 -> 23.619
B21: Директор | G21: Алентьєва Л.І.
F22: (підпис) (ініціали і прізвище)
B23: Головний бухгалтер | G23: Панченко З.П.
F24: (підпис) (ініціали і прізвище)
B27: Виконавець: Зайченко О.І.
B28: Волос Л.В.

Sheet КНП "ЦПМСД № 3"
M1: Додаток до листа
M2: від ________ 2018 № ______
B3: ІНФОРМАЦІЯ про надходження і використання благодійних пожертв від фізичних та юридичних осіб КНП "Центр первинної медико-санітарної допомоги №3" Дарницького району м. Києва за 1 квартал 2018 року
A4: найменування закладу охорони здоров′я
A5: № п/п | B5: Найменування юридичної особи (або позначення фізичної особи) | C5: Благодійні пожертви, що були отримані закладом охорони здоров'я від фізичних та юридичних осіб | F5: Всього отримано благодійних пожертв, тис. грн | G5: Використання закладом охорони здоров'я благодійних пожертв, отриманих у грошовій (товари і послуг) формі | K5: Залишок невикористаних грошових коштів, товарів та послуг на кінець звітного періоду, тис. грн
C6: В грошовій форм, тис. грн | D6: В натуральній формі (товари і послуги), тис. грн | E6: Перелік товарів і послуг в натуральній формі (канцтовари, господарські товари, будівельні товари, медикаменти та перев'язувальні матеріали, продукти харчування, м"який інвентар, основні засоби та інші) | G6: Напрямки використання у грошовій формі (стаття витрат) | H6: Сума, тис. грн | I6: Перелік використаних товарів та послуг у натуральній формі (канцтовари, господарські товари, будівельні товари, медикаменти та перев'язувальні матеріали, продукти харчування, м"який інвентар, основні засоби та інші) | J6: Сума, тис. грн
A7: 1 | B7: Фізичні особи | C7: 36.45 | F7: =SUM(C7,D7) -> 36.45 | G7: 2210 | H7: 0.42 | I7: господарчі товари
F8: =SUM(C8,D8) -> 0 | G8: 2210 | H8: 1.41 | I8: канцтовари
F9: 0 | G9: 2220 | H9: 2.77 | I9: медикаменти
F10: 0 | G10: 2240 | H10: 1 | I10: інтернет
F11: 0 | G11: 2240 | H11: 3.8 | I11: послуги зв"язку
F12: 0 | G12: 2240 | H12: 1.01 | I12: заправка картриджів
F13: 0 | G13: 2240 | H13: 2.65 | I13: супровід програм.забезпечення
F14: 0
F15: 0
F16: 0
F17: 0
F18: 0
F19: 0
F20: 0
F21: 0
F22: 0
F23: 0
F24: 0
F25: 0
F26: 0
F27: 0
F28: 0
F29: 0
F30: 0
F31: 0
F32: 0
F33: 0
F34: 0
F35: 0
B36: ВСЬОГО по закладу | C36: =SUM(C7:C35) -> 36.45 | D36: =SUM(D7:D35) -> 0 | F36: 36.45 | H36: =SUM(H7:H35) -> 13.06 | J36: =SUM(J7:J35) -> 0 | K36: =C36-H36 -> 23.39
B39: Керівник установи | G39: Я.Л. Швейгер
F40: (підпис) (ініціали і прізвище)
B41: Головний бухгалтер | G41: Г.М. Булатова
F42: (підпис) (ініціали і прізвище)

Sheet КНП "ЦПМСД № 1 деснянского"
M1: Додаток до листа
M2: від ________ 2018 № ______
B3: ІНФОРМАЦІЯ про надходження і використання благодійних пожертв від фізичних та юридичних осіб КНП "ЦПМСД №1" Деснянського району м.Києва за 1 квартал 2018 року
A4: найменування закладу охорони здоров′я
A5: № пп | B5: Найменування юридичної особи (або позначення фізичної особи) | C5: Благодійні пожертви, що були отримані закладом охорони здоров'я від фізичних та юридичних осіб | F5: Всього отримано благодійних пожертв, тис. грн | G5: Використання закладом охорони здоров'я благодійних пожертв, отриманих у грошовій (товари і послуг) формі | K5: Залишок невикористаних грошових коштів, товарів та послуг на кінець звітного періоду, тис. грн
C6: В грошовій форм, тис. грн | D6: В натуральній формі (товари і послуги), тис. грн | E6: Перелік товарів і послуг в натуральній формі (канцтовари, господарські товари, будівельні товари, медикаменти та перев'язувальні матеріали, продукти харчування, м"який інвентар, основні засоби та інші) | G6: Напрямки використання у грошовій формі (стаття витрат) | H6: Сума, тис. грн | I6: Перелік використаних товарів та послуг у натуральній формі (канцтовари, господарські товари, будівельні товари, медикаменти та перев'язувальні матеріали, продукти харчування, м"який інвентар, основні засоби та інші) | J6: Сума, тис. грн
A7: 1 | B7: Фізична особа | C7: 24.4 | D7: 0 | E7: 0 | F7: =SUM(C7,D7) -> 24.4 | G7: 2210 | H7: 6.03
F8: =SUM(C8,D8) -> 0 | G8: 2240 | H8: 0.54
F9: 0
F10: 0
F11: 0
F12: 0
F13: 0
F14: 0
F15: 0
F16: 0
F17: 0
F18: 0
B19: ВСЬОГО по закладу | C19: =SUM(C7:C18) -> 24.4 | D19: =SUM(D7:D18) -> 0 | F19: 24.4 | H19: =SUM(H7:H18) -> 6.57 | J19: =SUM(J7:J18) -> 0 | K19: =C19-H19 -> 17.83
B22: Керівник установи | G22: Батін В.О.
F23: (підпис) (ініціали і прізвище)
B24: Головний бухгалтер | G24: Якименко Г.В.
F25: (підпис) (ініціали і прізвище)

Sheet КНП "ЦПМСД № 3.1"
M1: Додаток до листа
M2: від ________ 2018 № ______
B3: ІНФОРМАЦІЯ про надходження і використання благодійних пожертв від фізичних та юридичних осіб по КНП ЦПМСД №3 Деснянського району м. Києва за І квартал 2018 року
A4: найменування закладу охорони здоров′я
A5: № пп | B5: Найменування юридичної особи (або позначення фізичної особи) | C5: Благодійні пожертви, що були отримані закладом охорони здоров'я від фізичних та юридичних осіб | F5: Всього отримано благодійних пожертв, тис. грн | G5: Використання закладом охорони здоров'я благодійних пожертв, отриманих у грошовій (товари і послуг) формі | K5: Залишок невикористаних грошових коштів, товарів та послуг на кінець звітного періоду, тис. грн
C6: В грошовій форм, тис. грн | D6: В натуральній формі (товари і послуги), тис. грн | E6: Перелік товарів і послуг в натуральній формі (канцтовари, господарські товари, будівельні товари, медикаменти та перев'язувальні матеріали, продукти харчування, м"який інвентар, основні засоби та інші) | G6: Напрямки використання у грошовій формі (стаття витрат) | H6: Сума, тис. грн | I6: Перелік використаних товарів та послуг у натуральній формі (канцтовари, господарські товари, будівельні товари, медикаменти та перев'язувальні матеріали, продукти харчування, м"який інвентар, основні засоби та інші) | J6: Сума, тис. грн
A7: 1 | B7: Фізична особа | C7: 45.5 | F7: =SUM(C7,D7) -> 45.5 | G7: 2220 | H7: 5.9 | I7: медикаменти
F8: =SUM(C8,D8) -> 0 | G8: 2730 | H8: 7.7 | I8: відш.безкошт.лік.зас
F9: 0 | G9: 3110 | H9: 12 | I9: багатофункц.принтер
F10: 0
F11: 0
F12: 0
F13: 0
F14: 0
F15: 0
F16: 0
F17: 0
F18: 0
F19: 0
F20: 0
F21: 0
F22: 0
F23: 0
F24: 0
F25: 0
F26: 0
F27: 0
F28: 0
F29: 0
F30: 0
F31: 0
F32: 0
F33: 0
F34: 0
F35: 0
F36: 0
F37: 0
F38: 0
F39: 0
F40: 0
F41: 0
F42: 0
F43: 0
F44: 0
F45: 0
F46: 0
F47: 0
F48: 0
F49: 0
B50: ВСЬОГО по закладу | C50: =SUM(C7:C49) -> 45.5 | D50: =SUM(D7:D49) -> 0 | F50: 45.5 | H50: =SUM(H7:H49) -> 25.6 | J50: =SUM(J7:J49) -> 0 | K50: =C50-H50 -> 19.9
B53: Керівник установи | G53: О.В. Шугалевич
F54: (підпис) (ініціали і прізвище)
B55: Головний бухгалтер | G55: О.В. Молодих
F56: (підпис) (ініціали і прізвище)

Sheet КНП "ЦПМСД № 4"
M1: Додаток до листа
K2: 38960345 | M2: від ________ 2018 № ______
B3: ІНФОРМАЦІЯ про надходження і використання благодійних пожертв від фізичних та юридичних осіб КНП "ЦПМСД №4" Деснянського р-ну м.Києва за 1 квартал 2018року
A4: найменування закладу охорони здоров′я
A5: № пп | B5: Найменування юридичної особи (або позначення фізичної особи) | C5: Благодійні пожертви, що були отримані закладом охорони здоров'я від фізичних та юридичних осіб | F5: Всього отримано благодійних пожертв, тис. грн | G5: Використання закладом охорони здоров'я благодійних пожертв, отриманих у грошовій (товари і послуг) формі | K5: Залишок невикористаних грошових коштів, товарів та послуг на кінець звітного періоду, тис. грн
C6: В грошовій форм, тис. грн | D6: В натуральній формі (товари і послуги), тис. грн | E6: Перелік товарів і послуг в натуральній формі (канцтовари, господарські товари, будівельні товари, медикаменти та перев'язувальні матеріали, продукти харчування, м"який інвентар, основні засоби та інші) | G6: Напрямки використання у грошовій формі (стаття витрат) | H6: Сума, тис. грн | I6: Перелік використаних товарів та послуг у натуральній формі (канцтовари, господарські товари, будівельні товари, медикаменти та перев'язувальні матеріали, продукти харчування, м"який інвентар, основні засоби та інші) | J6: Сума, тис. грн
A7: 1 | B7: Фізичні особи | C7: 20 | F7: =SUM(C7,D7) -> 20 | G7: 2210 | H7: 20
F8: =SUM(C8,D8) -> 0
F9: 0
F10: 0
F11: 0
F12: 0
F13: 0
F14: 0
F15: 0
F16: 0
F17: 0
F18: 0
F19: 0
F20: 0
F21: 0
F22: 0
F23: 0
F24: 0
F25: 0
F26: 0
F27: 0
F28: 0
F29: 0
F30: 0
F31: 0
F32: 0
F33: 0
F34: 0
F35: 0
F36: 0
F37: 0
F38: 0
F39: 0
F40: 0
F41: 0
F42: 0
F43: 0
F44: 0
F45: 0
F46: 0
F47: 0
F48: 0
F49: 0
B50: ВСЬОГО по закладу | C50: =SUM(C7:C49) -> 20 | D50: =SUM(D7:D49) -> 0 | F50: 20 | H50: =SUM(H7:H49) -> 20 | J50: =SUM(J7:J49) -> 0 | K50: =C50-H50 -> 0
B53: В.о.директора | G53: Петришина Г.В.
F54: (підпис) (ініціали і прізвище)
B55: Головний бухгалтер | G55: Житніковська Г.М.
F56: (підпис) (ініціали і прізвище)
B58: Виконавець: Павленко Т.Б
B59: 532-00-91

Sheet КНП "ЦПМСД № 1 дніпровського"
M1: Додаток до листа
M2: від ________ 2018 № ______
B3: ІНФОРМАЦІЯ про надходження і використання благодійних пожертв від фізичних та юридичних осіб КНП "Центр первинної медико - санітарної допомоги №1 Дніпровського району за I квартал 2018 року
A4: найменування закладу охорони здоров′я
A5: № пп | B5: Найменування юридичної особи (або позначення фізичної особи) | C5: Благодійні пожертви, що були отримані закладом охорони здоров'я від фізичних та юридичних осіб | F5: Всього отримано благодійних пожертв, тис. грн | G5: Використання закладом охорони здоров'я благодійних пожертв, отриманих у грошовій (товари і послуг) формі | K5: Залишок невикористаних грошових коштів, товарів та послуг на кінець звітного періоду, тис. грн
C6: В грошовій форм, тис. грн | D6: В натуральній формі (товари і послуги), тис. грн | E6: Перелік товарів і послуг в натуральній формі (канцтовари, господарські товари, будівельні товари, медикаменти та перев'язувальні матеріали, продукти харчування, м"який інвентар, основні засоби та інші) | G6: Напрямки використання у грошовій формі (стаття витрат) | H6: Сума, тис. грн | I6: Перелік використаних товарів та послуг у натуральній формі (канцтовари, господарські товари, будівельні товари, медикаменти та перев'язувальні матеріали, продукти харчування, м"який інвентар, основні засоби та інші) | J6: Сума, тис. грн
A7: 1 | F7: =SUM(C7,D7) -> 0
D8: х | E8: х | F8: =SUM(C8,D8) -> 0 | G8: х
F9: 0
F10: 0
A11: 2 | F11: 0
D12: х | E12: х | F12: 0 | G12: х
D13: х | E13: х | F13: 0 | G13: х
F14: 0
F15: 0
F16: 0
F17: 0
F18: 0
F19: 0
F20: 0
F21: 0
F22: 0
F23: 0
F24: 0
F25: 0
F26: 0
F27: 0
F28: 0
F29: 0
F30: 0
F31: 0
F32: 0
F33: 0
F34: 0
F35: 0
F36: 0
F37: 0
F38: 0
F39: 0
F40: 0
F41: 0
F42: 0
F43: 0
F44: 0
F45: 0
F46: 0
F47: 0
F48: 0
F49: 0
B50: ВСЬОГО по закладу | C50: =SUM(C7:C49) -> 0 | D50: =SUM(D7:D49) -> 0 | F50: 0 | H50: =SUM(H7:H49) -> 0 | J50: =SUM(J7:J49) -> 0 | K50: =C50-H50 -> 0
B53: Керівник установи
F54: (підпис) (ініціали і прізвище)
B55: Головний бухгалтер
F56: (підпис) (ініціали і прізвище)

Sheet КНП "ЦПМСД № 1 дніпровського р"
M1: Додаток до листа
M2: від ________ 2018 № ______
B3: ІНФОРМАЦІЯ про надходження і використання благодійних пожертв від фізичних та юридичних осіб КНП "ЦПМСД №2 Дніпровського району м. Києва за І квартал 2018 року
A4: найменування закладу охорони здоров′я
A5: № пп | B5: Найменування юридичної особи (або позначення фізичної особи) | C5: Благодійні пожертви, що були отримані закладом охорони здоров'я від фізичних та юридичних осіб | F5: Всього отримано благодійних пожертв, тис. грн | G5: Використання закладом охорони здоров'я благодійних пожертв, отриманих у грошовій (товари і послуг) формі | K5: Залишок невикористаних грошових коштів, товарів та послуг на кінець звітного періоду, тис. грн
C6: В грошовій форм, тис. грн | D6: В натуральній формі (товари і послуги), тис. грн | E6: Перелік товарів і послуг в натуральній формі (канцтовари, господарські товари, будівельні товари, медикаменти та перев'язувальні матеріали, продукти харчування, м"який інвентар, основні засоби та інші) | G6: Напрямки використання у грошовій формі (стаття витрат) | H6: Сума, тис. грн | I6: Перелік використаних товарів та послуг у натуральній формі (канцтовари, господарські товари, будівельні товари, медикаменти та перев'язувальні матеріали, продукти харчування, м"який інвентар, основні засоби та інші) | J6: Сума, тис. грн
A7: 1 | B7: Фізична особа | C7: 2.078 | F7: =SUM(C7,D7) -> 2.078
F8: =SUM(C8,D8) -> 0
F9: 0
F10: 0
F11: 0
F12: 0
B13: ВСЬОГО по закладу | C13: =SUM(C7:C12) -> 2.078 | D13: =SUM(D7:D12) -> 0 | F13: 2.078 | H13: =SUM(H7:H12) -> 0 | J13: =SUM(J7:J12) -> 0 | K13: =C13-H13 -> 2.078
B16: Керівник установи | G16: О.А. Квартальний
F17: (підпис) (ініціали і прізвище)
B18: Головний бухгалтер | G18: С.П. Сингаївська
F19: (підпис) (ініціали і прізвище)

Sheet КНП "ЦПМСД № 3 дніпро"
B3: ІНФОРМАЦІЯ про надходження і використання благодійних пожертв від фізичних та юридичних осіб Комунальне некомерційне підприємство "Центр первинної медико-санітарної допомоги №3 Дніпровського району м.Києва" за_1__квартал_2018_року
A4: найменування закладу охорони здоров′я
A5: № пп | B5: Найменування юридичної особи (або позначення фізичної особи) | C5: Благодійні пожертви, що були отримані закладом охорони здоров'я від фізичних та юридичних осіб | F5: Всього отримано благодійних пожертв, тис. грн | G5: Використання закладом охорони здоров'я благодійних пожертв, отриманих у грошовій (товари і послуг) формі | K5: Залишок невикористаних грошових коштів, товарів та послуг на кінець звітного періоду, тис. грн
C6: В грошовій форм, тис. грн | D6: В натуральній формі (товари і послуги), тис. грн | E6: Перелік товарів і послуг в натуральній формі (канцтовари, господарські товари, будівельні товари, медикаменти та перев'язувальні матеріали, продукти харчування, м"який інвентар, основні засоби та інші) | G6: Напрямки використання у грошовій формі (стаття витрат) | H6: Сума, тис. грн | I6: Перелік використаних товарів та послуг у натуральній формі (канцтовари, господарські товари, будівельні товари, медикаменти та перев'язувальні матеріали, продукти харчування, м"який інвентар, основні засоби та інші) | J6: Сума, тис. грн
A7: 1 | B7: Фізичні особи 195 чол. | C7: 13.8 | F7: =SUM(C7,D7) -> 13.8 | G7: 2210 | H7: 2.5 | I7: Господарські товари | K7: 11.9
A8: 2 | B8: ТОВ "Тедді Віжн" | C8: 0.6 | F8: =SUM(C8,D8) -> 0.6
F9: 0
F10: 0
F11: 0
F12: 0
F13: 0
F14: 0
F15: 0
F16: 0
F17: 0
F18: 0
F19: 0
F20: 0
F21: 0
F22: 0
F23: 0
F24: 0
F25: 0
F26: 0
F27: 0
F28: 0
F29: 0
F30: 0
F31: 0
F32: 0
F33: 0
F34: 0
F35: 0
F36: 0
F37: 0
F38: 0
F39: 0
F40: 0
F41: 0
F42: 0
F43: 0
F44: 0
F45: 0
F46: 0
F47: 0
F48: 0
F49: 0
B50: ВСЬОГО по закладу | C50: =SUM(C7:C49) -> 14.4 | D50: =SUM(D7:D49) -> 0 | F50: 14.4 | H50: =SUM(H7:H49) -> 2.5 | J50: =SUM(J7:J49) -> 0 | K50: =C50-H50 -> 11.9
B53: Керівник установи | G53: О.І.Ністряну
F54: (підпис) (ініціали і прізвище)
B55: Головний бухгалтер | G55: Н.П.Мірошниченко
B56: 296-74-59 | F56: (підпис) (ініціали і прізвище)

Sheet КНП "ЦПМСД № 4 дніпров"
J1: Додаток до листа
J2: від 20.03.2018 р. № 061-3416
A3: ІНФОРМАЦІЯ про надходження і використання благодійних пожертв від фізичних та юридичних осіб Комунального некомерційного підприємства "Центр первинної медико-санітарної допомоги № 4" Дніпровського району м. Києва ____за І квартал 2018_____року
A4: найменування закладу охорони здоров′я
A5: № пп | B5: Найменування юридичної особи (або позначення фізичної особи) | C5: Благодійні пожертви, що були отримані закладом охорони здоров'я від фізичних та юридичних осіб | F5: Всього отримано благодійних пожертв, тис. грн | G5: Використання закладом охорони здоров'я благодійних пожертв, отриманих у грошовій (товари і послуг) формі | K5: Залишок невикористаних грошових коштів, товарів та послуг на кінець звітного періоду, тис. грн
C6: В грошовій форм, тис. грн | D6: В натуральній формі (товари і послуги), тис. грн | E6: Перелік товарів і послуг в натуральній формі (канцтовари, господарські товари, будівельні товари, медикаменти та перев'язувальні матеріали, продукти харчування, м"який інвентар, основні засоби та інші) | G6: Напрямки використання у грошовій формі (стаття витрат) | H6: Сума, тис. грн | I6: Перелік використаних товарів та послуг у натуральній формі (канцтовари, господарські товари, будівельні товари, медикаменти та перев'язувальні матеріали, продукти харчування, м"який інвентар, основні засоби та інші) | J6: Сума, тис. грн
A7: 1 | B7: Фізична особа | C7: 25.2 | F7: =SUM(C7,D7) -> 25.2 | G7: 2210 | H7: 0.9 | I7: інформаційна вивіска
F8: =SUM(C8,D8) -> 0 | G8: 2210 | H8: 1.6 | I8: періодичні видання
F9: =SUM(C9,D9) -> 0 | G9: 2240 | H9: 4.3 | I9: обслуговування програмного забезпечення
F10: 0 | G10: 2240 | H10: 0.3 | I10: комісія банку за обслуговування рахунку
F11: 0 | G11: 2240 | H11: 7.8 | I11: аудиторські послуги
F12: 0
F13: 0
F14: 0
F15: 0
F16: 0
F17: 0
B18: ВСЬОГО по закладу | C18: =SUM(C7:C17) -> 25.2 | D18: =SUM(D7:D17) -> 0 | F18: 25.2 | H18: =SUM(H7:H17) -> 14.9 | J18: =SUM(J7:J17) -> 0 | K18: =C18-H18 -> 10.3
B21: Директор | F21: Н.П.Поліванова
F22: (підпис) (ініціали і прізвище)
B23: Головний бухгалтер | F23: Т.М.Осадча
F24: (підпис) (ініціали і прізвище)

Sheet Русанівка
I1: Додаток
I2: до наказу Міністерства охорони здоров’я України
I3: 25.07.2017 №848
A4: ІНФОРМАЦІЯ
A5: про надходження і використання благодійних пожертв від фізичних та юридичних осіб
A6: Комунальне некомерційне підприємство "Центр первинної медико-санітарної допомоги "Русанівка" Дніпровського району міста Києва" за І квартал 2018 року
A8: Період | B8: Найменування юридичної особи (або позначення фізичної особи) | C8: Благодійні пожертви, що були отримані закладом охорони здоров'я від фізичних та юридичних осіб | F8: Всього отримано благодійних пожертв, тис. грн | G8: Використання закладом охорони здоров'я благодійних пожертв, отриманих у грошовій (товари і послуг) формі | K8: Залишок невикористаних грошових коштів, товарів та послуг на кінець звітного періоду, тис. грн
C9: В грошовій форм, тис.грн | D9: В натуральній формі (товари і послуги), тис.грн | E9: Перелік товарів і послуг в натуральній формі (канцтовари, господарські товари, будівельні товари, медикаменти та перев'язувальні матеріали, продукти харчування, м"який інвентар, основні засоби та інші) | G9: Напрямки використання у грошовій формі (стаття витрат) | H9: Сума, тис. грн | I9: Перелік використаних товарів та послуг у натуральній формі (канцтовари, господарські товари, будівельні товари, медикаменти та перев'язувальні матеріали, продукти харчування, м"який інвентар, основні засоби та інші) | J9: Сума, тис. грн
A10: І квартал | F10: =SUM(C10,D10) -> 0
B11: фізичні особи | C11: ='розшифровка І квартал'!F102/1000 -> 7.84 | F11: =SUM(C11,D11) -> 7.84
A12: ІІ квартал | F12: 0
F13: 0
A14: ІІІ квартал | F14: 0
F15: 0
A16: ІІІ квартал | F16: 0
F17: 0
A18: Всього за рік | F18: 0
F19: 0
B20: ВСЬОГО по закладу | C20: =SUM(C10:C19) -> 7.84 | D20: =SUM(D10:D19) -> 0 | F20: 7.84 | H20: =SUM(H10:H19) -> 0 | J20: =SUM(J10:J19) -> 0 | K20: =C20-H20 -> 7.84
B23: Керівник установи
F24: (підпис) (ініціали і прізвище)
B25: Головний бухгалтер
F26: (підпис) (ініціали і прізвище)

Sheet КНП "ЦПМСД № 2"оболонського
M1: Додаток до листа
M2: від ________ 2018 № ______
B3: ІНФОРМАЦІЯ про надходження і використання благодійних пожертв від фізичних та юридичних осіб КНП "Центр первинної медико-санітарної допомоги №2" Оболонського району м.Києва за І квартал 2018 року
A4: найменування закладу охорони здоров′я
A5: № пп | B5: Найменування юридичної особи (або позначення фізичної особи) | C5: Благодійні пожертви, що були отримані закладом охорони здоров'я від фізичних та юридичних осіб | F5: Всього отримано благодійних пожертв, тис. грн | G5: Використання закладом охорони здоров'я благодійних пожертв, отриманих у грошовій (товари і послуг) формі | K5: Залишок невикористаних грошових коштів, товарів та послуг на кінець звітного періоду, тис. грн
C6: В грошовій форм, тис. грн | D6: В натуральній формі (товари і послуги), тис. грн | E6: Перелік товарів і послуг в натуральній формі (канцтовари, господарські товари, будівельні товари, медикаменти та перев'язувальні матеріали, продукти харчування, м"який інвентар, основні засоби та інші) | G6: Напрямки використання у грошовій формі (стаття витрат) | H6: Сума, тис. грн | I6: Перелік використаних товарів та послуг у натуральній формі (канцтовари, господарські товари, будівельні товари, медикаменти та перев'язувальні матеріали, продукти харчування, м"який інвентар, основні засоби та інші) | J6: Сума, тис. грн
A7: 1 | B7: Фізичі особи | C7: =9.37 -> 9.37 | F7: =SUM(C7,D7) -> 9.37 | G7: 2210 | H7: 0.06 | I7: канцтовари
F8: =SUM(C8,D8) -> 0 | G8: 2220 | H8: 2.97 | I8: медикаменти
F9: 0 | G9: 2240 | H9: 0.19 | I9: абонплата
F10: 0 | G10: 2800 | H10: 1.34 | I10: в доход бюджета
F11: 0
F12: 0
F13: 0
F14: 0
F15: 0
F16: 0
F17: 0
F18: 0
F19: 0
F20: 0
F21: 0
F22: 0
F23: 0
F24: 0
F25: 0
F26: 0
F27: 0
F28: 0
F29: 0
F30: 0
F31: 0
F32: 0
F33: 0
F34: 0
F35: 0
F36: 0
F37: 0
F38: 0
F39: 0
F40: 0
F41: 0
F42: 0
F43: 0
F44: 0
F45: 0
F46: 0
F47: 0
F48: 0
F49: 0
B50: ВСЬОГО по закладу | C50: =SUM(C7:C49) -> 9.37 | D50: =SUM(D7:D49) -> 0 | F50: 9.37 | H50: =SUM(H7:H49) -> 4.56 | J50: =SUM(J7:J49) -> 0 | K50: =C50-H50 -> 4.81
B53: Керівник установи | D53: Торпан В. С.
F54: (підпис) (ініціали і прізвище)
B55: Головний бухгалтер | D55: Нешкуренко Н.В.
F56: (підпис) (ініціали і прізвище)

Sheet КНП "ЦПМСД № 1" подольського
M1: Додаток до листа
M2: від ________ 2018 № ______
B3: ІНФОРМАЦІЯ про надходження і використання благодійних пожертв від фізичних та юридичних осіб КНП "ЦПМСД №1" Подільського р-ну м. Києва за 1 квартал 2018 року
A4: найменування закладу охорони здоров′я
A5: № пп | B5: Найменування юридичної особи (або позначення фізичної особи) | C5: Благодійні пожертви, що були отримані закладом охорони здоров'я від фізичних та юридичних осіб | F5: Всього отримано благодійних пожертв, тис. грн | G5: Використання закладом охорони здоров'я благодійних пожертв, отриманих у грошовій (товари і послуг) формі | K5: Залишок невикористаних грошових коштів, товарів та послуг на кінець звітного періоду, тис. грн
C6: В грошовій форм, тис. грн | D6: В натуральній формі (товари і послуги), тис. грн | E6: Перелік товарів і послуг в натуральній формі (канцтовари, господарські товари, будівельні товари, медикаменти та перев'язувальні матеріали, продукти харчування, м"який інвентар, основні засоби та інші) | G6: Напрямки використання у грошовій формі (стаття витрат) | H6: Сума, тис. грн | I6: Перелік використаних товарів та послуг у натуральній формі (канцтовари, господарські товари, будівельні товари, медикаменти та перев'язувальні матеріали, продукти харчування, м"який інвентар, основні засоби та інші) | J6: Сума, тис. грн
A7: 1 | B7: Фізична особа | C7: 10.93 | F7: =SUM(C7,D7) -> 10.93 | G7: 2240 | H7: =(175+175+175)/1000 -> 0.525 | I7: послуги звязку | K7: 10.58
F8: =SUM(C8,D8) -> 0
F9: 0
F10: 0
F11: 0
F12: 0
F13: 0
F14: 0
F15: 0
F16: 0
F17: 0
B18: ВСЬОГО по закладу | C18: =SUM(C7:C17) -> 10.93 | D18: =SUM(D7:D17) -> 0 | F18: 10.93 | H18: =SUM(H7:H17) -> 0.525 | J18: =SUM(J7:J17) -> 0 | K18: =C18-H18 -> 10.405
B21: Керівник установи | G21: Л.М. Вагалюк
F22: (підпис) (ініціали і прізвище)
B23: Головний бухгалтер | G23: Н.П. Мосійчук
F24: (підпис) (ініціали і прізвище)

Sheet КНП "ЦПМСД № 2" подольского
A1: ІНФОРМАЦІЯ
A3: про надходження і використання благодійних пожертв від фізичних та юридичних осіб
A4: за 1 квартал 2018 року
A5: КНП"ЦПМСД №2 Подільського р-ну м. Києва
A6: найменування закладу охорони здоров'я
A8: Період | B8: Найменування юридичної особи (або позначення фізичної особи) | C8: Благодійні пожертви, що були отримані закладом охорони здоров'я від фізичних та юридичних осіб | F8: Всього отримано благодійних пожертв, тис. грн. | G8: Використання закладом охорони здоров'я благодійних пожертв, отриманих у грошовій та натуральній (товари і послуги) формі | K8: Залишок невикористаних грошових коштів, товарів та послуг на кінець звітного періоду, тис. грн.
C9: В грошовій формі, тис. грн. | D9: В натуральній формі (товари і послуги), тис. грн. | E9: Перелік товарів і послуг в натуральній формі | G9: Напрямки використання у грошовій формі (статгя витрат) | H9: Сума, тис. грн. | I9: Перелік використаних товарів та послуг у натуральній формі | J9: Судіа, тис. гри.
A10: І квартал | B10: Київський фонд відновлювальної медицини | D10: 2670.08 | E10: Медикаменти | F10: 2670.08 | I10: Медикаменти | J10: 851.83 | K10: 1818.25
B11: БО"100 відсотків життя. Київський регіон" | C11: - | D11: 60912.45 | E11: Проведення ремонтних робіт | F11: 60912.45 | I11: Проведення ремонтних робіт | J11: 60912.45
A12: П квартал | F12: 0,0 | K12: 0,0
A14: III квартал | F14: 0,0 | K14: 0,0
A16: IV квартал | F16: 0,0 | K16: 0,0
A18: Всього за рік | C18: 0,0 | D18: 0,0 | E18: X | F18: 0,0 | G18: X | H18: 0,0 | I18: X | J18: 0,0 | K18: 0,0
A19: Директор | D19: Н.П.Білічук
A21: Головний бухгалтер | D21: В.А.Сірош

Sheet КНП "ЦПМСД № 1" святошинського
A1: ІНФОРМАЦІЯ
A2: про надходження і використання благодійних пожертв від фізичних та юридичних осіб
A3: по КНП "Центр первинної медико-санітарної допомоги №1" Святошинського р-ну за І квартал 2018 року
A5: № п/п | B5: Найменування юридичної особи (або позначення фізичної особи) | C5: Благодійні пожертви, що були отримані закладом охорони здоров'я від фізичних та юридичних осіб | F5: Всього отримано благодійних пожертв, тис.грн. | G5: Використання закладом охорони здоров'я благодійних пожертв, отриманих у грошовій (товари і послуги) формі | K5: Залишок невикористаних грошових коштів, товарів та послуг на кінець звітного періоду, тис.грн.
C6: В грошовій формі, тис.грн | D6: В натуральній формі (товари і послуги), тис.грн | E6: Перелік товарів і послуг в натуральній формі (канцтовари, господарські товари, будівельні товари, медикаменти та перев'язувальні матеріали, продукти харчування, м'який інвентар, основні засоби та інші) | G6: Напрямки використання у грошовій формі (стаття витрат) | H6: Сума, тис.грн. | I6: Перелік використаних товарів та послуг у натуральній формі (канцтовари, господарські товари, будівельні товари, медикаменти та перев'язувальні матеріали, продукти харчування, м'який інвентар, основні засоби та інші) | J6: Сума, тис.грн.
A7: 1 | B7: КНП "Центр первинної медико-санітарної допомоги №1" Святошинського р-ну м.Києва | C7: 3.1 | F7: 3.1 | G7: КЕКВ 2240 (оплата послуг - крім комунальних) | H7: 0.5 | K7: 2.6
B14: Директор | E14: Подковська Д.Ф.
B16: Головний бухгалтер | E16: Семенченко Ю.М.

Sheet КНП "ЦПМСД № 2"святошинського
M1: Додаток до листа
M2: від ________ 2018 № ______
B3: ІНФОРМАЦІЯ про надходження і використання благодійних пожертв від фізичних та юридичних осіб КНП "Центр первинної медико - санітарної допомоги №2" Святошинського р-ну м. Києва за 1квартал_ 2018 року
A4: найменування закладу охорони здоров′я
A5: № пп | B5: Найменування юридичної особи (або позначення фізичної особи) | C5: Благодійні пожертви, що були отримані закладом охорони здоров'я від фізичних та юридичних осіб | F5: Всього отримано благодійних пожертв, тис. грн | G5: Використання закладом охорони здоров'я благодійних пожертв, отриманих у грошовій (товари і послуг) формі | K5: Залишок невикористаних грошових коштів, товарів та послуг на кінець звітного періоду, тис. грн
C6: В грошовій форм, тис. грн | D6: В натуральній формі (товари і послуги), тис. грн | E6: Перелік товарів і послуг в натуральній формі (канцтовари, господарські товари, будівельні товари, медикаменти та перев'язувальні матеріали, продукти харчування, м"який інвентар, основні засоби та інші) | G6: Напрямки використання у грошовій формі (стаття витрат) | H6: Сума, тис. грн | I6: Перелік використаних товарів та послуг у натуральній формі (канцтовари, господарські товари, будівельні товари, медикаменти та перев'язувальні матеріали, продукти харчування, м"який інвентар, основні засоби та інші) | J6: Сума, тис. грн
A7: 1 | B7: Фізичні особи | C7: 43.1 | D7: 0 | E7: 0 | F7: =SUM(C7,D7) -> 43.1 | G7: 2210 | H7: 4.8
F8: =SUM(C8,D8) -> 0 | G8: 2240 | H8: 3.9
F9: 0 | G9: 2240 | H9: 5.8
F10: 0 | G10: 2240 | H10: 0.3
F11: 0 | G11: 2240 | H11: 0.4
F12: 0 | G12: 2240 | H12: 1.6
F13: 0 | G13: 2240 | H13: 0.4
F14: 0
F15: 0
F16: 0
F17: 0
F18: 0
F19: 0
F20: 0
F21: 0
F22: 0
F23: 0
F24: 0
F25: 0
F26: 0
F27: 0
F28: 0
F29: 0
F30: 0
F31: 0
F32: 0
F33: 0
F34: 0
F35: 0
F36: 0
F37: 0
F38: 0
F39: 0
F40: 0
F41: 0
F42: 0
F43: 0
F44: 0
F45: 0
F46: 0
F47: 0
F48: 0
F49: 0
B50: ВСЬОГО по закладу | C50: =SUM(C7:C49) -> 43.1 | D50: =SUM(D7:D49) -> 0 | F50: 43.1 | H50: =SUM(H7:H49) -> 17.2 | J50: =SUM(J7:J49) -> 0 | K50: =C50-H50 -> 25.9
B53: Керівник установи | G53: Н. Петрученко
F54: (підпис) (ініціали і прізвище)
B55: Головний бухгалтер | G55: Л. Йовенко
F56: (підпис) (ініціали і прізвище)

Sheet КНП "ЦПМСД № 3"святошинського
M1: Додаток до листа
M2: від 20.03.2018 № 061-3416
B3: ІНФОРМАЦІЯ про надходження і використання благодійних пожертв від фізичних та юридичних осіб КНП "ЦПМСД № 3" Святошинського району м. Києва за I квартал 2018 року
A4: найменування закладу охорони здоров′я
A5: № пп | B5: Найменування юридичної особи (або позначення фізичної особи) | C5: Благодійні пожертви, що були отримані закладом охорони здоров'я від фізичних та юридичних осіб | F5: Всього отримано благодійних пожертв, тис. грн | G5: Використання закладом охорони здоров'я благодійних пожертв, отриманих у грошовій (товари і послуг) формі | K5: Залишок невикористаних грошових коштів, товарів та послуг на кінець звітного періоду, тис. грн
C6: В грошовій форм, тис. грн | D6: В натуральній формі (товари і послуги), тис. грн | E6: Перелік товарів і послуг в натуральній формі (канцтовари, господарські товари, будівельні товари, медикаменти та перев'язувальні матеріали, продукти харчування, м"який інвентар, основні засоби та інші) | G6: Напрямки використання у грошовій формі (стаття витрат) | H6: Сума, тис. грн | I6: Перелік використаних товарів та послуг у натуральній формі (канцтовари, господарські товари, будівельні товари, медикаменти та перев'язувальні матеріали, продукти харчування, м"який інвентар, основні засоби та інші) | J6: Сума, тис. грн
F7: =SUM(C7,D7) -> 0
A8: 1 | B8: Благодійні внески | C8: 13.5 | D8: 0 | E8: 0 | F8: =SUM(C8,D8) -> 13.5 | G8: 2210 | H8: 5.4 | K8: 11.5
F9: 0 | G9: 2240 | H9: 5.5
F10: 0
F11: 0
F12: 0
F13: 0
F14: 0
F15: 0
F16: 0
F17: 0
F18: 0
F19: 0
F20: 0
F21: 0
F22: 0
F23: 0
F24: 0
F25: 0
F26: 0
F27: 0
F28: 0
F29: 0
F30: 0
F31: 0
F32: 0
F33: 0
F34: 0
F35: 0
F36: 0
F37: 0
F38: 0
F39: 0
F40: 0
F41: 0
F42: 0
F43: 0
F44: 0
F45: 0
F46: 0
F47: 0
F48: 0
F49: 0
B50: ВСЬОГО по закладу | C50: =SUM(C7:C49) -> 13.5 | D50: =SUM(D7:D49) -> 0 | F50: 13.5 | H50: =SUM(H7:H49) -> 10.9 | J50: =SUM(J7:J49) -> 0 | K50: =C50-H50 -> 2.6
B53: Керівник установи
F54: (підпис) (ініціали і прізвище)
B55: Головний бухгалтер
F56: (підпис) (ініціали і прізвище)

Sheet КНП "ЦПМСД № 1" соломянського
M1: Додаток до листа
M2: від ________ 2018 № ______
B3: ІНФОРМАЦІЯ про надходження і використання благодійних пожертв від фізичних та юридичних осіб Комунальне некомерційне підприємство "Центр первинної медико-санітарної допомоги №1" Солом'янського району м.Києва за_І_квартал_2018_року
A4: найменування закладу охорони здоров′я
A5: № пп | B5: Найменування юридичної особи (або позначення фізичної особи) | C5: Благодійні пожертви, що були отримані закладом охорони здоров'я від фізичних та юридичних осіб | F5: Всього отримано благодійних пожертв, тис. грн | G5: Використання закладом охорони здоров'я благодійних пожертв, отриманих у грошовій (товари і послуг) формі | K5: Залишок невикористаних грошових коштів, товарів та послуг на кінець звітного періоду, тис. грн
C6: В грошовій форм, тис. грн | D6: В натуральній формі (товари і послуги), тис. грн | E6: Перелік товарів і послуг в натуральній формі (канцтовари, господарські товари, будівельні товари, медикаменти та перев'язувальні матеріали, продукти харчування, м"який інвентар, основні засоби та інші) | G6: Напрямки використання у грошовій формі (стаття витрат) | H6: Сума, тис. грн | I6: Перелік використаних товарів та послуг у натуральній формі (канцтовари, господарські товари, будівельні товари, медикаменти та перев'язувальні матеріали, продукти харчування, м"який інвентар, основні засоби та інші) | J6: Сума, тис. грн
A7: 1 | B7: Фізична особа | C7: 23.141 | F7: =SUM(C7,D7) -> 23.141 | G7: 2240 | H7: 0.414 | I7: комісія банку за обслуговування | K7: 52.01
F8: =SUM(C8,D8) -> 0
F9: 0
F10: 0
F11: 0
F12: 0
F13: 0
F14: 0
F15: 0
F16: 0
F17: 0
F18: 0
F19: 0
F20: 0
F21: 0
F22: 0
F23: 0
F24: 0
F25: 0
F26: 0
F27: 0
F28: 0
F29: 0
F30: 0
F31: 0
F32: 0
F33: 0
F34: 0
F35: 0
F36: 0
F37: 0
F38: 0
F39: 0
F40: 0
F41: 0
F42: 0
F43: 0
F44: 0
F45: 0
F46: 0
F47: 0
F48: 0
F49: 0
B50: ВСЬОГО по закладу | C50: =SUM(C7:C49) -> 23.141 | D50: =SUM(D7:D49) -> 0 | F50: 23.141 | H50: =SUM(H7:H49) -> 0.414 | J50: =SUM(J7:J49) -> 0 | K50: =C50-H50 -> 22.727
B53: Керівник установи | G53: Сваток А.С.
F54: (підпис) (ініціали і прізвище)
B55: Головний бухгалтер | G55: Шереметьєва Л.В.
F56: (підпис) (ініціали і прізвище)

Sheet КНП "ЦПМСД № 2" соломянського
M1: Додаток до листа
M2: від ________ 2018 № ______
B3: ІНФОРМАЦІЯ про надходження і використання благодійних пожертв від фізичних та юридичних осіб КНП "ЦПМСД №2 " Солом'янського району за І квартал 2018 року
A4: найменування закладу охорони здоров′я
A5: № пп | B5: Найменування юридичної особи (або позначення фізичної особи) | C5: Благодійні пожертви, що були отримані закладом охорони здоров'я від фізичних та юридичних осіб | F5: Всього отримано благодійних пожертв, тис. грн | G5: Використання закладом охорони здоров'я благодійних пожертв, отриманих у грошовій (товари і послуг) формі | K5: Залишок невикористаних грошових коштів, товарів та послуг на кінець звітного періоду, тис. грн
C6: В грошовій форм, тис. грн | D6: В натуральній формі (товари і послуги), тис. грн | E6: Перелік товарів і послуг в натуральній формі (канцтовари, господарські товари, будівельні товари, медикаменти та перев'язувальні матеріали, продукти харчування, м"який інвентар, основні засоби та інші) | G6: Напрямки використання у грошовій формі (стаття витрат) | H6: Сума, тис. грн | I6: Перелік використаних товарів та послуг у натуральній формі (канцтовари, господарські товари, будівельні товари, медикаменти та перев'язувальні матеріали, продукти харчування, м"який інвентар, основні засоби та інші) | J6: Сума, тис. грн
A7: 1. | B7: Фізични особи | C7: 10.88 | F7: =SUM(C7,D7) -> 10.88
F8: =SUM(C8,D8) -> 0
F9: 0
F10: 0
F11: 0
F12: 0
F13: 0
F14: 0
F15: 0
F16: 0
F17: 0
F18: 0
F19: 0
F20: 0
F21: 0
F22: 0
F23: 0
F24: 0
F25: 0
F26: 0
F27: 0
F28: 0
F29: 0
F30: 0
F31: 0
F32: 0
F33: 0
F34: 0
F35: 0
F36: 0
F37: 0
F38: 0
F39: 0
F40: 0
F41: 0
F42: 0
F43: 0
F44: 0
F45: 0
F46: 0
F47: 0
F48: 0
F49: 0
B50: ВСЬОГО по закладу | C50: =SUM(C7:C49) -> 10.88 | D50: =SUM(D7:D49) -> 0 | F50: 10.88 | H50: =SUM(H7:H49) -> 0 | J50: =SUM(J7:J49) -> 0 | K50: =C50-H50 -> 10.88
B53: Керівник установи | G53: В.М.Шпильова
F54: (підпис) (ініціали і прізвище)
B55: Головний бухгалтер | G55: Л.В.Омельянова
F56: (підпис) (ініціали і прізвище)

Sheet КНП "ЦПМСД № 1" шевченківського
M1: Додаток до листа
M2: від ________ 2018 № ______
B3: ІНФОРМАЦІЯ про надходження і використання благодійних пожертв від фізичних та юридичних осіб КНП"ЦПМСД№1 Шевченківського району міста Києва за 1 квартал 2018 року
A5: № пп | B5: Найменування юридичної особи (або позначення фізичної особи) | C5: Благодійні пожертви, що були отримані закладом охорони здоров'я від фізичних та юридичних осіб | F5: Всього отримано благодійних пожертв, тис. грн | G5: Використання закладом охорони здоров'я благодійних пожертв, отриманих у грошовій (товари і послуг) формі | K5: Залишок невикористаних грошових коштів, товарів та послуг на кінець звітного періоду, тис. грн
C6: В грошовій форм, тис. грн | D6: В натуральній формі (товари і послуги), тис. грн | E6: Перелік товарів і послуг в натуральній формі (канцтовари, господарські товари, будівельні товари, медикаменти та перев'язувальні матеріали, продукти харчування, м"який інвентар, основні засоби та інші) | G6: Напрямки використання у грошовій формі (стаття витрат) | H6: Сума, тис. грн | I6: Перелік використаних товарів та послуг у натуральній формі (канцтовари, господарські товари, будівельні товари, медикаменти та перев'язувальні матеріали, продукти харчування, м"який інвентар, основні засоби та інші) | J6: Сума, тис. грн
A7: 1 | B7: КНП"КДЦ"Шевченківського р-ну | D7: 114.14 | E7: Медикаменти (вакцина) | F7: 114.144 | G7: 2220 | I7: Медикаменти (вакцина) | J7: 114.144 | K7: 0
A8: 2 | B8: Фізична особа | C8: 8.19 | F8: =SUM(C8,D8) -> 8.19 | K8: 8.19
B18: ВСЬОГО по закладу | C18: =SUM(C7:C17) -> 8.19 | D18: =SUM(D7:D17) -> 114.14 | F18: =SUM(C18,D18) -> 122.33 | H18: =SUM(H7:H17) -> 0 | J18: =SUM(J7:J17) -> 114.144 | K18: =C18-H18 -> 8.19
B21: Керівник установи | G21: Н.В.Гурська
F22: (підпис) (ініціали і прізвище)
B23: Головний бухгалтер | G23: О.К. Гейко
F24: (підпис) (ініціали і прізвище)

Sheet КНП "ЦПМСД № 2" шевченківського
J1: Додаток до листа
J2: від ________ 2018 № ______
B3: ІНФОРМАЦІЯ про надходження і використання благодійних пожертв від фізичних та юридичних осіб КНП "ЦПМСД №2" Шевченківського району міста Києва, ЄДРПОУ 38948312 за І квартал 2018 року
A4: найменування закладу охорони здоров′я
A5: № пп | B5: Найменування юридичної особи (або позначення фізичної особи) | C5: Благодійні пожертви, що були отримані закладом охорони здоров'я від фізичних та юридичних осіб | F5: Всього отримано благодійних пожертв, тис. грн | G5: Використання закладом охорони здоров'я благодійних пожертв, отриманих у грошовій (товари і послуг) формі | K5: Залишок невикористаних грошових коштів, товарів та послуг на кінець звітного періоду, тис. грн
C6: В грошовій форм, тис. грн | D6: В натуральній формі (товари і послуги), тис. грн | E6: Перелік товарів і послуг в натуральній формі (канцтовари, господарські товари, будівельні товари, медикаменти та перев'язувальні матеріали, продукти харчування, м"який інвентар, основні засоби та інші) | G6: Напрямки використання у грошовій формі (стаття витрат) | H6: Сума, тис. грн | I6: Перелік використаних товарів та послуг у натуральній формі (канцтовари, господарські товари, будівельні товари, медикаменти та перев'язувальні матеріали, продукти харчування, м"який інвентар, основні засоби та інші) | J6: Сума, тис. грн
A7: 1 | B7: КОМУНАЛЬНЕ НЕКОМЕРЦІЙНЕ ПІДПРИЄМСТВО "ЦЕНТР ПЕРВИННОЇ МЕДИКО-САНІТАРНОЇ ДОПОМОГИ №3" ШЕВЧЕНКІВСЬКОГО РАЙОНУ МІСТА КИЄВА | D7: =1869/1000 -> 1.869 | E7: вироби медичного призначення. Отримано згідно розпорядження про розподіл УОЗ. | F7: =SUM(C7,D7) -> 1.869 | I7: вироби медичного призначення | J7: =1869/1000 -> 1.869
B8: КОМУНАЛЬНЕ НЕКОМЕРЦІЙНЕ ПІДПРИЄМСТВО "КОНСУЛЬТАТИВНО-ДІАГНОСТИЧНИЙ ЦЕНТР" ШЕВЧЕНКІВСЬКОГО РАЙОНУ МІСТА КИЄВА | D8: =92165.5/1000 -> 92.1655 | E8: вакцина. Отримано шляхом централізованого постачання за рахунок державного бюджету згідно наказів ДОЗ., УОЗ | F8: =SUM(C8,D8) -> 92.1655 | I8: вакцина | J8: =92165.5/1000 -> 92.1655
F9: 0
F10: 0
F11: 0
F12: 0
F13: 0
F14: 0
F15: 0
F16: 0
F17: 0
F18: 0
F19: 0
F20: 0
F21: 0
F22: 0
F23: 0
F24: 0
F25: 0
F26: 0
F27: 0
F28: 0
F29: 0
F30: 0
F31: 0
F32: 0
F33: 0
F34: 0
F35: 0
F36: 0
F37: 0
F38: 0
F39: 0
F40: 0
F41: 0
F42: 0
F43: 0
F44: 0
F45: 0
F46: 0
F47: 0
F48: 0
F49: 0
B50: ВСЬОГО по закладу | C50: =SUM(C7:C49) -> 0 | D50: =SUM(D7:D49) -> 94.0345 | F50: 94.0345 | H50: =SUM(H7:H49) -> 0 | J50: =SUM(J7:J49) -> 94.0345 | K50: =C50-H50 -> 0
B53: Керівник установи
F54: (підпис) (ініціали і прізвище)
B55: Головний бухгалтер
F56: (підпис) (ініціали і прізвище)

Sheet КНП "ЦПМСД № 3" шевченкивського
M1: Додаток до листа
M2: від ________ 2018 № ______
B3: ІНФОРМАЦІЯ про надходження і використання благодійних пожертв від фізичних та юридичних осіб Комунальне некомерційне підприємство « Центр первинної медико - санітарної допомоги №3» Шевченківського району міста Києва за 1 квартал 2018 року
A4: найменування закладу охорони здоров′я
A5: № пп | B5: Найменування юридичної особи (або позначення фізичної особи) | C5: Благодійні пожертви, що були отримані закладом охорони здоров'я від фізичних та юридичних осіб | F5: Всього отримано благодійних пожертв, тис. грн | G5: Використання закладом охорони здоров'я благодійних пожертв, отриманих у грошовій (товари і послуг) формі | K5: Залишок невикористаних грошових коштів, товарів та послуг на кінець звітного періоду, тис. грн
C6: В грошовій форм, тис. грн | D6: В натуральній формі (товари і послуги), тис. грн | E6: Перелік товарів і послуг в натуральній формі (канцтовари, господарські товари, будівельні товари, медикаменти та перев'язувальні матеріали, продукти харчування, м"який інвентар, основні засоби та інші) | G6: Напрямки використання у грошовій формі (стаття витрат) | H6: Сума, тис. грн | I6: Перелік використаних товарів та послуг у натуральній формі (канцтовари, господарські товари, будівельні товари, медикаменти та перев'язувальні матеріали, продукти харчування, м"який інвентар, основні засоби та інші) | J6: Сума, тис. грн
A7: 1. | B7: КНП „Консультативно-діагностичний центр” Шевченківського району м. Києва | D7: 213.35 | E7: Медикаменти (вакцини) | F7: =SUM(C7,D7) -> 213.35 | I7: Медикаменти (вакцини) | J7: 213.35 | K7: 0
A8: 2 | B8: Фізична особа | C8: 5.71 | F8: =SUM(C8,D8) -> 5.71 | G8: 2240 | H8: 2.69 | I8: Заправка картриджів | K8: 3.02
B9: ВСЬОГО по закладу | C9: =SUM(C7:C8) -> 5.71 | D9: =SUM(D7:D8) -> 213.35 | F9: =SUM(C9,D9) -> 219.06 | H9: =SUM(H7:H8) -> 2.69 | J9: =SUM(J7:J8) -> 213.35 | K9: =C9-H9 -> 3.02
B12: Директор | G12: Штепа Л.Д.
F13: (підпис) (ініціали і прізвище)
B14: Головний бухгалтер | G14: Бернацька Т.А.
F15: (підпис) (ініціали і прізвище)
B16: вик.Ляшевська Л.О.
B17: 455-61-41

Sheet розшифровка І квартал (hidden)
I1: Додаток
I2: до наказу Міністерства охорони здоров’я України
I3: 25.07.2017 №848
A4: ІНФОРМАЦІЯ
A5: про надходження і використання благодійних пожертв від фізичних та юридичних осіб
A6: Комунальне некомерційне підприємство "Центр первинної медико-санітарної допомоги "Русанівка" Дніпровського району міста Києва" за І квартал 2018 року
A8: № пп | B8: Найменування юридичної особи (або позначення фізичної особи) | C8: Благодійні пожертви, що були отримані закладом охорони здоров'я від фізичних та юридичних осіб | F8: Всього отримано благодійних пожертв, грн | G8: Використання закладом охорони здоров'я благодійних пожертв, отриманих у грошовій (товари і послуг) формі | K8: Залишок невикористаних грошових коштів, товарів та послуг на кінець звітного періоду, грн
C9: В грошовій форм, грн | D9: В натуральній формі (товари і послуги), грн | E9: Перелік товарів і послуг в натуральній формі (канцтовари, господарські товари, будівельні товари, медикаменти та перев'язувальні матеріали, продукти харчування, м"який інвентар, основні засоби та інші) | G9: Напрямки використання у грошовій формі (стаття витрат) | H9: Сума, грн | I9: Перелік використаних товарів та послуг у натуральній формі (канцтовари, господарські товари, будівельні товари, медикаменти та перев'язувальні матеріали, продукти харчування, м"який інвентар, основні засоби та інші) | J9: Сума, грн
A10: 2018-01-02 | B10: каса | C10: 150 | F10: =SUM(C10,D10) -> 150
A11: 2018-01-05 | B11: каса | C11: 100 | F11: =SUM(C11,D11) -> 100
A12: 2018-01-09 | B12: каса | C12: 20 | F12: 20
B13: каса | C13: 20 | F13: 20
A14: 2018-01-10 | B14: каса | C14: 100 | F14: 100
B15: через УкрСиббанк | C15: 200 | F15: 200
B16: через УкрСиббанк | C16: 100 | F16: 100
A17: 2018-01-11 | B17: через УкрСиббанк | C17: 100 | F17: 100
B18: через УкрСиббанк | C18: 10 | F18: 10
B19: через УкрСиббанк | C19: 40 | F19: 40
A20: 2018-01-12 | B20: каса | C20: 20 | F20: 20
B21: через УкрСиббанк | C21: 100 | F21: 100
A22: 2018-01-16 | B22: через УкрСиббанк | C22: 100 | F22: 100
A23: 2018-01-17 | B23: каса | C23: 200 | F23: 200
B24: каса | C24: 300 | F24: 300
A25: 2018-01-22 | B25: каса | C25: 50 | F25: 50
B26: каса | C26: 300 | F26: 300
B27: каса | C27: 300 | F27: 300
B28: каса | C28: 50 | F28: 50
B29: через УкрСиббанк | C29: 50 | F29: 50
A30: 2018-01-23 | B30: каса | C30: 300 | F30: 300
B31: через УкрСиббанк | C31: 150 | F31: 150
A32: 2018-01-24 | B32: каса | C32: 50 | F32: 50
B33: каса | C33: 50 | F33: 50
B34: каса | C34: 60 | F34: 60
A35: 2018-01-29 | B35: каса | C35: 50 | F35: 50
B36: через УкрСиббанк | C36: 200 | F36: 200
B37: через УкрСиббанк | C37: 95 | F37: 95
B38: через УкрСиббанк | C38: 20 | F38: 20
A39: 2018-01-30 | B39: каса | C39: 10 | F39: 10
B40: через УкрСиббанк | C40: 300 | F40: 300
B41: через УкрСиббанк | C41: 50 | F41: 50
A42: 2018-01-31 | B42: через УкрСиббанк | C42: 50 | F42: 50
A43: 2018-02-01 | B43: каса | C43: 10 | F43: 10
B44: каса | C44: 50 | F44: 50
B45: каса | C45: 50 | F45: 50
B46: каса | C46: 300 | F46: 300
A47: 2018-02-02 | B47: каса | C47: 30 | F47: 30
B48: каса | C48: 50 | F48: 50
A49: 2018-02-05 | B49: каса | C49: 150 | F49: 150
A50: 2018-02-06 | B50: каса | C50: 50 | F50: 50
B51: каса | C51: 100 | F51: 100
A52: 2018-02-07 | B52: каса | C52: 50 | F52: 50
B53: через УкрСиббанк | C53: 8 | F53: 8
A54: 2018-02-08 | B54: через УкрСиббанк | C54: 100 | F54: 100
A55: 2018-02-09 | B55: через УкрСиббанк | C55: 50 | F55: 50
A56: 2018-02-12 | B56: через УкрСиббанк | C56: 200 | F56: 200
A57: 2018-02-13 | B57: каса | C57: 100 | F57: 100
B58: каса | C58: 100 | F58: 100
B59: через УкрСиббанк | C59: 25 | F59: 25
B60: через УкрСиббанк | C60: 50 | F60: 50
A61: 2018-02-14 | B61: каса | C61: 50 | F61: 50
A62: 2018-02-16 | B62: каса | C62: 100 | F62: 100
A63: 2018-02-19 | B63: каса | C63: 30 | F63: 30
A64: 2018-02-20 | B64: каса | C64: 34 | F64: 34
B65: каса | C65: 50 | F65: 50
A66: 2018-02-21 | B66: каса | C66: 100 | F66: 100
A67: 2018-02-22 | B67: каса | C67: 100 | F67: 100
B68: через УкрСиббанк | C68: 35 | F68: 35
A69: 2018-02-26 | B69: каса | C69: 30 | F69: 30
B70: каса | C70: 100 | F70: 100
A71: 2018-02-27 | B71: каса | C71: 30 | F71: 30
B72: через УкрСиббанк | C72: 50 | F72: 50
A73: 2018-03-02 | B73: каса | C73: 200 | F73: 200
A74: 2018-03-05 | B74: каса | C74: 50 | F74: 50
A75: 2018-03-07 | B75: каса | C75: 100 | F75: 100
A76: 2018-03-12 | B76: каса | C76: 200 | F76: 200
A77: 2018-03-13 | B77: каса | C77: 45 | F77: 45
A78: 2018-03-16 | B78: каса | C78: 50 | F78: 50
A79: 2018-03-19 | B79: каса | C79: 50 | F79: 50
A80: 2018-03-22 | B80: каса | C80: 50 | F80: 50
B81: каса | C81: 50 | F81: 50
B82: каса | C82: 70 | F82: 70
B83: через УкрСиббанк | C83: 100 | F83: 100
A84: 2018-03-26 | B84: каса | C84: 50 | F84: 50
B85: каса | C85: 250 | F85: 250
A86: 2018-03-29 | B86: каса | C86: 20 | F86: 20
A87: 2018-03-30 | B87: каса | C87: 30 | F87: 30
B88: через УкрСиббанк | C88: 100 | F88: 100
A89: ПРИВАТБАНК | F89: 0
A90: 2018-01-07 | C90: 199.5 | F90: 199.5
A91: 2018-03-07 | C91: 199.5 | F91: 199.5
A92: 2018-03-14 | C92: 49.5 | F92: 49.5
A93: 2018-03-23 | C93: 99.5 | F93: 99.5
F94: 0
F95: 0
F96: 0
F97: 0
F98: 0
F99: 0
F100: 0
F101: 0
B102: ВСЬОГО по закладу | C102: =SUM(C10:C101) -> 7840 | D102: =SUM(D10:D101) -> 0 | F102: 7840 | H102: =SUM(H10:H101) -> 0 | J102: =SUM(J10:J101) -> 0 | K102: =C102-H102 -> 7840
B105: Керівник установи
F106: (підпис) (ініціали і прізвище)
B107: Головний бухгалтер
F108: (підпис) (ініціали і прізвище)
